Cogmind - Beta 15 @@@ ROGUE MODE // 2025.09.23 @ 11:56:03 Player: glorp Result: Self-destructed Performance ------------- Evolutions (2) 1000 Regions Visited (4) 800 Robots Destroyed (34) 170 Value Destroyed (609) 609 Prototype IDs (5) 100 Alien Tech Used (0) 0 Bonus (0) 0 TOTAL SCORE: 2679 Bonus ------- None Cogmind --------- Core Integrity 537/550 Matter 260/300 Energy 125/125 System Corruption 0% Temperature Cool (0) Movement Hovering (52) Location -8/Materials Parts ------- > --- POWER (1) -------- Light Ion Engine > --- PROPULSION (5) --- Gravmag System Gravmag System Gravmag System Gravmag System > --- UTILITY (3) ------ Medium Storage Unit Advanced Weight Redist. System > --- WEAPON (2) ------- Heavy EM Shotgun Missile Launcher > --- INVENTORY (10) --- Aluminum Leg Small Storage Unit Shock Rifle Shock Rifle Light Cannon Missile Launcher Peak State ------------ > --- POWER ------------ Light Ion Engine > --- PROPULSION ------- Aluminum Leg Gravmag System Gravmag System Gravmag System Gravmag System > --- UTILITY ---------- Medium Storage Unit Advanced Weight Redist. System Improved Targeting Computer > --- WEAPON ----------- Shock Rifle Improved Assault Rifle > --- INVENTORY -------- Small Storage Unit Shock Rifle Light Cannon Missile Launcher Missile Launcher [Rating: 31] Favorites ----------- Power Ion Engine Engine Ion Engine Propulsion Aluminum Leg Treads Light Treads Leg Aluminum Leg Wheel Compact Wheel Hover Unit Gravmag System Utility Medium Storage Unit Device Advanced Weight Redist. System Storage Medium Storage Unit Processor Signal Interpreter Weapon Improved Assault Rifle Energy Gun Medium Laser Energy Cannon Advanced Beam Cannon Ballistic Gun Improved Assault Rifle Launcher Missile Launcher Build | -11 -10 -10 -9 -8 ------- Run | Yrd Mat Min Mat Mat Slots Evolved 4 | . . . 2 2 Power . | . . . . . Propulsion 3 | . . . 1 2 Utility 1 | . . . 1 . Weapon . | . . . . . Parts Attached 35 | 7 1 . 18 9 Power 3 | 2 . . 1 . Engine 3 | 2 . . 1 . Core . | . . . . . Reactor . | . . . . . Propulsion 15 | 2 . . 9 4 Treads 1 | . . . 1 . Leg 8 | 2 . . 6 . Wheel 2 | . . . 2 . Hover 4 | . . . . 4 Flight . | . . . . . Utility 5 | 1 1 . 2 1 Device 1 | . . . . 1 Storage 2 | 1 1 . . . Processor 2 | . . . 2 . Hackware . | . . . . . Protection . | . . . . . Artifact . | . . . . . Weapon 12 | 2 . . 6 4 Energy Gun 5 | 1 . . 3 1 Energy Cannon 1 | . . . . 1 Ballistic Gun 4 | 1 . . 3 . Ballistic Cannon . | . . . . . Launcher 2 | . . . . 2 Special Weapon . | . . . . . Impact Weapon . | . . . . . Slashing Weapon . | . . . . . Piercing Weapon . | . . . . . Special Melee Weapon . | . . . . . Unidentified Prototypes 5 | . . . 2 3 Parts Lost 4 | . . . 4 . Power 1 | . . . 1 . Propulsion 2 | . . . 2 . Utility . | . . . . . Weapon 1 | . . . 1 . Highest Loss Streak 2 | . . . 2 . To Critical Strikes . | . . . . . Average Backups 7 | 1 6 8 8 5 Power . | . 1 1 . . Propulsion 1 | . 2 2 1 . Utility 1 | . 1 2 1 1 Weapon 3 | . 2 3 3 4 Tool/Special . | . . . . . Unused Backups 5 | . . . 2 3 Power . | . . . . . Propulsion 1 | . . . . 1 Utility . | . . . . . Weapon 4 | . . . 2 2 Tool/Special . | . . . . . Average Slot Usage (%) 79 | . 85 85 73 90 Engine 10 | . 14 14 10 9 Leg 20 | . 28 28 21 5 Wheel 2 | . . . 3 . Hover 6 | . . . . 33 Device 1 | . . . . 5 Storage 11 | . 14 14 11 9 Processor 3 | . . . 3 9 Energy Gun 6 | . 14 14 2 10 Ballistic Gun 15 | . 14 14 18 5 Peak Build Rating 31 | 6 7 6 16 31 Average Rating 13 | 4 6 6 13 28 On Entrance 6 | . 6 6 6 15 Naked Turns . | . . . . . Heaviest Build 25 | 13 18 18 25 23 Greatest Support 50 | 20 20 20 32 50 Greatest Overweight (x) 2 | . . . 2 2 Average Overweight (x) . | . . . . . Largest Inventory Capacity 10 | 8 10 10 10 10 Average Capacity 9 | 6 8 10 10 10 Most Carried 10 | 4 8 8 10 9 Average Carried 7 | 1 6 8 8 5 Final Capacity 10 | 8 10 10 10 10 Final Carried 10 | 4 8 8 10 6 Class Distribution -------------------- 93% | Mutant 6% | Scavenger-Mutant Dominant Class ---------------- Mutant | -10/Materials Mutant | -10/Mines Mutant | -9/Materials Mutant | -8/Materials Resources | -11 -10 -10 -9 -8 ----------- Run | Yrd Mat Min Mat Mat Matter Collected 931 | 214 22 34 517 144 Remotely . | . . . . . Salvage Created 1102 | . 22 34 795 251 Parts 63 | . 1 1 45 16 Haulers Intercepted 1 | . . . . 1 Recyclers Shooed 1 | . . . 1 . Parts Field Recycled . | . . . . . Retrieved Matter . | . . . . . Parts Self-Destructed . | . . . . . Prevented . | . . . . . Kills | -11 -10 -10 -9 -8 ------- Run | Yrd Mat Min Mat Mat Combat Hostiles Destroyed 21 | . . 3 13 5 Guns 18 | . . 3 13 2 AOE 3 | . . . . 3 Classes Destroyed 8 | . 1 1 4 2 Worker 3 | . . . 3 . Builder 1 | . . . . 1 Hauler 1 | . . . . 1 Recycler 4 | . . . 3 1 Watcher 4 | . 1 . 3 . Swarmer 11 | . . 3 5 3 Grunt 8 | . . . 6 2 Sentry 2 | . . . 2 . Best Kill Streak 6 | . 1 3 4 6 Combat Bots Only 3 | . . 3 3 3 Max Kills in Single Turn 3 | . 1 1 2 3 Gunslinging 1 | . . . 1 . Exploded 3 | . . . . 3 Melee . | . . . . . Uniques/NPCs Destroyed . | . . . . . Combat | -11 -10 -10 -9 -8 -------- Run | Yrd Mat Min Mat Mat Hostile Shots Fired 142 | . . 29 91 22 Missed 44 | . . 8 25 11 Hits 98 | . . 21 66 11 Projectile 98 | . . 21 66 11 Critical Strikes 1 | . . . 1 . Damage Taken 1141 | . . 247 741 153 Core 196 | . . 29 154 13 Absorbed by Shields . | . . . . . Core Remaining (%) 83 | 100 . 88 61 . Volleys Fired 73 | . 1 6 55 11 Largest 2 | . 2 2 2 2 Hottest 100 | . 70 70 100 100 Shots Fired 143 | . 2 12 108 21 Gun 140 | . 2 12 108 18 Cannon . | . . . . . Launcher 3 | . . . . 3 Special . | . . . . . Kinetic 112 | . 1 6 100 5 Thermal 7 | . 1 6 . . Explosive 3 | . . . . 3 Electromagnetic 21 | . . . 8 13 Robot Hit Streak 16 | . 1 1 16 10 Robot Miss Streak 2 | . . 2 2 1 Penetration Max . | . . . . . Secondary Targets 4 | . . 1 3 . Max Gunslinging Chain 1 | . . 1 1 . Shots Hit Robots 100 | . 1 4 79 16 Core Hits 44 | . 1 4 29 10 Critical Kills . | . . . . . Critical Parts Destroyed . | . . . . . Critical Strikes 1 | . . . . 1 Corrupt 1 | . . . . 1 Melee Attacks . | . . . . . Impact . | . . . . . Slashing . | . . . . . Piercing . | . . . . . Sneak Attacks . | . . . . . Combat Hostiles . | . . . . . Follow-up Attacks . | . . . . . Damage Inflicted 1906 | . 12 56 1249 589 Guns 1578 | . 12 56 1246 264 Cannons . | . . . . . Explosions 325 | . . . . 325 Melee . | . . . . . Ramming 3 | . . . 3 . Kinetic 1207 | . . 6 1137 64 Thermal 62 | . 12 50 . . Explosive 325 | . . . . 325 Electromagnetic 309 | . . . 109 200 Impact . | . . . . . Slashing . | . . . . . Piercing . | . . . . . Highest Corruption . | . . . . . Average Corruption . | . . . . . Corruption Purged . | . . . . . Corruption Blocked . | . . . . . Overload Shots . | . . . . . Overflow Damage 4 | . . . . 4 Projectiles . | . . . . . Explosions 4 | . . . . 4 Melee . | . . . . . Knockbacks . | . . . . . Impact . | . . . . . Kinetic . | . . . . . Secondary . | . . . . . Self-Inflicted Damage 2 | . . . . 2 Shots 1 | . . . . 1 Rammed . | . . . . . Targets Rammed 1 | . . . 1 . Kicked 1 | . . . 1 . Crushed . | . . . . . Highest Temperature 126 | . 30 100 60 126 Average Temperature 38 | . 18 50 19 44 Received Heat Transfer 417 | . . 36 291 90 Siege Activations . | . . . . . Martial Activations . | . . . . . Shielding Activations . | . . . . . Robots Disrupted . | . . . . . Combat Hostiles . | . . . . . Robots Corrupted . | . . . . . Combat Hostiles . | . . . . . Parts Fried 1 | . . . . 1 Impact Corruptions . | . . . . . Robots Melted . | . . . . . Combat Hostiles . | . . . . . Parts Melted . | . . . . . Heat Transferred 185 | . 37 148 . . Parts Sabotaged . | . . . . . Parts Stolen . | . . . . . Parts Stripped . | . . . . . Power Chain Reactions . | . . . . . Alert | -11 -10 -10 -9 -8 ------- Run | Yrd Mat Min Mat Mat Maximum Alert Level . | . . . . . Low Security (%) 100 | 100 100 100 100 100 Level 1 . | . . . . . Level 2 . | . . . . . Level 3 . | . . . . . Level 4 . | . . . . . Level 5 . | . . . . . High Security . | . . . . . Max Security . | . . . . . Peak Influence 97 | . 30 60 88 97 Initial 20 | . . . . 20 Average 26 | . 7 13 36 23 Influence Increases 686 | . 37 70 433 146 Destroy 0b10 Robot/C 420 | . . 60 260 100 Destroy 0b10 Robot/NC 65 | . 5 . 45 15 Destroy Leader 90 | . 2 10 66 12 Destroy Structure 21 | . . . 2 19 Lose Combat Pursuer 90 | . 30 . 60 . Influence Decreases 620 | . 37 70 383 130 Entered New Map 30 | . . . . 30 Time Decay 550 | . 37 70 343 100 Lost Part 40 | . . . 40 . Squads Dispatched 2 | . 1 . 1 . Investigation 1 | . . . 1 . Extermination . | . . . . . Reinforcement 1 | . 1 . . . Assault . | . . . . . Garrison . | . . . . . Intercept . | . . . . . Searches Triggered . | . . . . . Construction Impeded . | . . . . . Haulers Reinforced . | . . . . . Active Scanning Responses . | . . . . . Cargo Convoy Interrupts . | . . . . . Stealth | -11 -10 -10 -9 -8 --------- Run | Yrd Mat Min Mat Mat Distress Signals 4 | . 1 . 1 2 Communications Jammed . | . . . . . Distress Signals . | . . . . . Times Spotted 37 | . 3 5 22 7 Peak Tracking Total 4 | . 3 3 4 4 Tactical Retreats 3 | . 1 . 2 . Traps | -11 -10 -10 -9 -8 ------- Run | Yrd Mat Min Mat Mat Traps Triggered . | . . . . . Indirectly . | . . . . . Trap Hack Attempts . | . . . . . Triggered . | . . . . . Disarmed . | . . . . . Reprogrammed . | . . . . . Reused . | . . . . . Traps Extracted . | . . . . . Installed . | . . . . . Triggered . | . . . . . Machines | -11 -10 -10 -9 -8 ---------- Run | Yrd Mat Min Mat Mat Machines Disabled . | . . . . . Max in Single Turn . | . . . . . Machines Repaired . | . . . . . Machines Dismantled . | . . . . . Machines Sabotaged . | . . . . . Overloaded Fab Kills . | . . . . . Hacking | -11 -10 -10 -9 -8 --------- Run | Yrd Mat Min Mat Mat Machines Accessed 3 | . . 1 2 . Terminals 1 | . . . 1 . Fabricators . | . . . . . Repair Stations . | . . . . . Recycling Units . | . . . . . Scanalyzers 1 | . . . 1 . Garrison Access . | . . . . . Total Hacks 6 | . . 1 5 . Successful 3 | . . 1 2 . Failed 3 | . . . 3 . Catastrophic . | . . . . . Database Lockouts . | . . . . . Manual . | . . . . . Terminals 2 | . . . 2 . Fabricators . | . . . . . Repair Stations . | . . . . . Recycling Units . | . . . . . Scanalyzers 3 | . . . 3 . Garrison Access . | . . . . . Terminal Hacks 1 | . . 1 . . Open Door 1 | . . 1 . . Fabricator Hacks . | . . . . . Repair Station Hacks . | . . . . . Recycling Unit Hacks . | . . . . . Scanalyzer 2 | . . . 2 . Insert Component 1 | . . . 1 . Analyze 1 | . . . 1 . Garrison Access Hacks . | . . . . . Unauthorized Hacks . | . . . . . Terminals . | . . . . . Fabricators . | . . . . . Repair Stations . | . . . . . Recycling Units . | . . . . . Scanalyzers . | . . . . . Garrison Access . | . . . . . Data Cores Recovered . | . . . . . Used . | . . . . . Hacking Detections 2 | . . . 2 . Full Trace Events 1 | . . . 1 . Feedback Events . | . . . . . Feedback Blocked . | . . . . . Robot Schematics Acquired . | . . . . . Robots Built . | . . . . . Authchips . | . . . . . Time . | . . . . . Total Robot Build Rating . | . . . . . Part Schematics Acquired 1 | . . . 1 . Parts Built . | . . . . . Authchips . | . . . . . Time . | . . . . . Total Part Build Rating . | . . . . . Parts Repaired . | . . . . . Time . | . . . . . Parts Recycled . | . . . . . Recycled Matter . | . . . . . Retrieved Matter . | . . . . . Retrieved Components . | . . . . . Parts Scanalyzed 1 | . . . 1 . Part Schematics Acquired 1 | . . . 1 . Parts Damaged . | . . . . . Bothacking | -11 -10 -10 -9 -8 ------------ Run | Yrd Mat Min Mat Mat Used RIF Installer . | . . . . . Robots Hacked . | . . . . . Non-combat . | . . . . . Combat . | . . . . . Robot Hacks Applied . | . . . . . Relay Couplers Released . | . . . . . Fabnet Peak Effective % . | . . . . . Robots Rewired . | . . . . . Allies Hacked . | . . . . . Hacks Repelled . | . . . . . Allies | -11 -10 -10 -9 -8 -------- Run | Yrd Mat Min Mat Mat Total Allies . | . . . . . Largest Group . | . . . . . Highest-Rated Group . | . . . . . Highest-Rated Ally . | . . . . . Total Orders . | . . . . . Ally Attacks . | . . . . . Total Damage . | . . . . . Kills . | . . . . . Allies Corrupted . | . . . . . Allies Melted . | . . . . . Intel | -11 -10 -10 -9 -8 ------- Run | Yrd Mat Min Mat Mat Active Infowar (turns) . | . . . . . Robot Analysis Total . | . . . . . Derelict Logs Recovered 1 | . . 1 . . Drone Launches . | . . . . . Drone Recoveries . | . . . . . Exploration | -11 -10 -10 -9 -8 ------------- Run | Yrd Mat Min Mat Mat Turns Passed 1885 | 111 141 296 1014 323 Spaces Moved 1147 | 87 112 196 485 267 Core 9 | 9 . . . . Treads 1 | . . . 1 . Legs 741 | 78 112 196 349 6 Wheels 135 | . . . 135 . Hover 261 | . . . . 261 Flight . | . . . . . Fastest Speed 48 | 50 120 120 100 48 Average Speed 113 | 112 120 120 142 55 Slowest Speed 260 | 120 120 120 260 220 Overloaded Moves . | . . . . . Propulsion Burnouts . | . . . . . Robots Hopped . | . . . . . Potential Cave-ins . | . . . . . Cave-ins Triggered . | . . . . . Exploration Rate (%) 27 | 6 27 49 34 20 Regions Visited 4 Branch Regions 1 Pre-discovered Areas . | . . . . . Known Exits Taken 1 | . . . 1 . Unknown Exits Taken 3 | 1 1 1 . . Scrap Searched . | . . . . . Spaces Dug . | . . . . . Terrain Destroyed 22 | . . . . 22 Melee . | . . . . . Projectile . | . . . . . AOE 22 | . . . . 22 Terrain Rammed . | . . . . . Walls Destroyed . | . . . . . Machines Disabled . | . . . . . Actions | -11 -10 -10 -9 -8 --------- Run | Yrd Mat Min Mat Mat Total 1577 | 96 117 246 698 420 Wait 284 | . . 45 119 120 Move 1143 | 86 111 195 484 267 Hop . | . . . . . Pick Up 10 | 3 3 . 4 . Fast Attach 15 | 6 1 . 7 1 Attach 10 | . . . 6 4 Detach 11 | . 1 . 5 5 Swap 18 | 1 . . 9 8 Drop 12 | . . . 8 4 Fire 73 | . 1 6 55 11 Melee . | . . . . . Ram . | . . . . . Kick 1 | . . . 1 . Crush . | . . . . . Escape Stasis . | . . . . . Rewire . | . . . . . Trap . | . . . . . Miscellaneous . | . . . . . Route ------- -11/Scrapyard -10/Materials -10/Mines -9/Materials -8/Materials History --------- Turn | Location | Event 4 | -11/Scrapyard | Discovered new exit (range 16) 112 | -11/Scrapyard | Entered Materials 243 | -10/Materials | Discovered new exit (range 9) 253 | -10/Materials | Entered Mines 313 | -10/Mines | Build established: Mutant 402 | -10/Mines | Learned Materials terminal intel 408 | -10/Mines | Met a Derelict who couldn't figure out how to use a Trap Extractor 530 | -10/Mines | Discovered new exit (range 15) 549 | -10/Mines | Entered Materials 549 | -9/Materials | Evolved 2 slots: Propulsion x1, Utility x1 550 | -9/Materials | Loaded intel: 12 terminal locations 1306 | -9/Materials | Discovered new exit (range 5) 1345 | -9/Materials | Identified exit to Materials 1563 | -9/Materials | Entered another Materials area 1563 | -8/Materials | Evolved 2 slots: Propulsion x2 1886 | -8/Materials | Self-destructed Last Messages --------------- U-05 Engineer lays Concrete. Acquired Prototype Energy Cannon. Identified Adv. Beam Cannon. K-01 Serf collects debris. U-05 Engineer lays Concrete. U-05 Engineer builds a Wall. U-05 Engineer lays Concrete. Acquired Prototype Energy Gun. Identified Hvy. EM Shotgun. U-05 Engineer lays Concrete. W-25 Informer sends out distress signal. U-05 Engineer builds a Wall. K-01 Serf collects debris. U-05 Engineer lays Concrete. The unstable cave ceiling collapses. U-05 Engineer builds a Wall. U-05 Engineer lays Concrete. T-07 Excavator is excavating. U-05 Engineer builds a Wall. U-05 Engineer lays Concrete. Map ----- +----------------------------------------------------+ | ??????????????????????####??# # #????????? | | ??????????????????????# ""??# ###########????????? | | ??????????????????????# "R"?# ##### ]]??????????? | | ??????????????????????# " "?# + ] ????????? | | ??????????????????????# # ##### ??????? | | ??????????????????????# ]]] # #????? ??????? | | ??????????????????????# ]]] + #????? ??????? | | ??????????????????????# ]] # #?????? """???????? | | ??????????????????????####### #?????? """???????? | | ??????????????????????#]]] # #??????? ""????????? | | ??????????????????????#]] # #??????? ????????? | | ??????????????????????#]] # #########+##???????? | | ??????????????????????# + #???????? | | ??????????????????????# ########## #???????? | | ??????????????????????# #????????# +???????? | | ??????????????????????# #????????# #???????? | | ??????????????????????#######?####???# #???????? | | ?????????????????????????????? ??# #???????? | | ????????????????????????????# """ ??# #???????? | | ????????????????????????????# """ ?# #???????? | | ????????????????????????????# """ ?# #???????? | | ????????????????????????????# # #????##?? | | ??????????????????????####### """ # ### #?? | | ??????????????????????# ] ## """ + T +?? | | ??????????????????????# ##! """ # ### #?? | | ??????????????????????# @!## # #?????#?? | | ??????????????????????# ########+## #???????? | | ??????????????????????# + #???????? | | ??????????????????????# "" # #???????? | | ??????????????????????# T" # #???????? | | ??????????????????????# "" #+#+####### #???????? | | ??????????????????????# # ????# #???????? | | ??????????????????????###### "" #??# #???????? | | ???????????????????????????# "Y +?? #???????? | | ???????????????????????????# "" #??# +???????? | | ???????????????????????????# #??# #???????? | | ???????????????????????????# #??# #???????? | | ???????????????????????????########??? ???????? | | ?????????????????????????????????????? ???????? | | ?????????????????????????????????????? ??????? | | ?????????????????????????????????????? ##??????? | | ?????????????????????????????????????? #???????? | | ?????????????????????????????????????????#???????? | | ?????????????????????????????????????????????????? | | ?????????????????????????????????????????????????? | | ?????????????????????????????????????????????????? | | ?????????????????????????????????????????????????? | | ?????????????????????????????????????????????????? | | ?????????????????????????????????????????????????? | | ?????????????????????????????????????????????????? | +----------------------------------------------------+ Best States ------------- Heat Dissipation 31 Energy Generation 18 Energy Capacity 250 Matter Stores 300 Matter Capacity 300 Sight Range 16 Terrain Scan Density 10 Additional Mass Support 9 Evasion (%) 55 Targeting Accuracy 6 Item Schematics ----------------- Imp. Assault Rifle | -9/Materials | Scanalyzed Robot Schematics ------------------ None Fabricated ------------ Nothing Repaired ---------- Nothing Alien Tech Used ----------------- None Achievements -------------- None Challenges ------------ None Game ------ Seed GrapheneLatentPendant Manual? 0 Play Time 00:13:40 Cumulative 6.1 hours Start 2025.09.21 @ 18:22:55 End 2025.09.23 @ 11:56:03 Sessions 3 Manual Loads 0 Difficulty Rogue Special Mode None Game No. 17 Rogue 3 Adventurer 14 Explorer 0 Win Type - Total 0 Types 0/0/0/0/0/0/0/0/0/0 Lore% 4 Gallery% 12 Achievement% 19 Wizard Run 0 Options --------- Layout 1 ASCII 0 Keyboard 1 Movement Numpad Keybinds 0 Fullscreen 1 Font 24/Smallcaps Map View 50x35 Zoom Use 0% Tactical HUD 0 Map Filters NONE Filters NONE Steam 0 RUN: 984b0624-f1aa-4801-8062-adf70d8c6442